bitfinex-derivatives/quotes_BTCF0:USTF0_20241104
["timestamp","ask_amount","ask_price","bid_price","bid_amount"]
[1730743095430,0.24091288,67895.0,67894.0,0.04351795]
[1730743095627,0.073687,67891.0,67890.0,0.05801633]
[1730743095936,0.60171688,67891.0,67890.0,0.05801633]
[1730743096634,0.60171688,67891.0,67884.0,0.07255138]
[1730743096635,1.04359688,67891.0,67884.0,0.07255138]
[1730743096831,0.51810894,67885.0,67884.0,0.07255138]
[1730743097239,0.073701,67879.0,67878.0,0.00220976]
[1730743097429,0.51811594,67879.0,67878.0,0.00220976]
[1730743098437,0.60173088,67879.0,67878.0,0.00220976]
[1730743099043,0.58973088,67879.0,67878.0,0.00220976]
[1730743099239,0.50611594,67879.0,67878.0,0.00220976]
[1730743099840,0.51011594,67879.0,67878.0,0.00220976]
[1730743100040,0.51411594,67879.0,67878.0,0.00220976]
[1730743105129,0.51411594,67879.0,67878.0,0.07591176]
[1730743109945,0.073699,67881.0,67878.0,0.24681252]
[1730743110146,0.073699,67881.0,67880.0,0.073699]
[1730743110446,0.073701,67879.0,67878.0,0.0750474]
[1730743110646,0.15731594,67879.0,67878.0,0.00220976]
[1730743111743,0.15731594,67879.0,67878.0,0.07591176]
[1730743111938,0.16131594,67879.0,67878.0,0.07591176]
[1730743112648,0.16431594,67879.0,67878.0,0.07591176]
[1730743112840,0.007,67879.0,67878.0,0.07591176]
[1730743113035,0.08361494,67882.0,67881.0,0.073698]
[1730743113236,0.073695,67884.0,67883.0,0.073696]
[1730743114537,0.079695,67884.0,67883.0,0.074696]
[1730743115636,0.079695,67884.0,67883.0,0.075696]
[1730743115841,0.086695,67884.0,67883.0,0.075696]
[1730743117052,0.086695,67884.0,67883.0,0.08761935]
[1730743117951,0.086695,67884.0,67883.0,0.075696]
[1730743118340,0.086695,67884.0,67883.0,0.11252407]
[1730743118947,0.086695,67884.0,67883.0,0.21009443]
[1730743119754,0.086695,67884.0,67883.0,0.29749959]
[1730743119953,0.086695,67884.0,67883.0,0.21009443]
[1730743120145,0.086695,67884.0,67883.0,0.29749959]
[1730743120346,0.086695,67884.0,67883.0,0.21009443]
[1730743120844,0.086695,67884.0,67883.0,0.29749959]
[1730743121046,0.086695,67884.0,67883.0,0.21009443]
[1730743121845,0.086695,67884.0,67883.0,0.21030216]
[1730743122946,0.013,67884.0,67883.0,0.32679514]
[1730743123753,0.013,67884.0,67883.0,1.82679514]
[1730743124447,0.073688,67891.0,67890.0,0.073689]
[1730743124642,0.073688,67891.0,67890.0,0.25905417]
[1730743124849,0.91164482,67891.0,67880.0,0.10285481]
[1730743125047,0.51811294,67881.0,67880.0,0.02982969]
[1730743125453,0.96007294,67881.0,67880.0,0.02982969]
[1730743125955,1.08064805,67881.0,67880.0,0.02982969]
[1730743126151,1.03488142,67881.0,67880.0,0.02982969]
[1730743126554,0.51429227,67881.0,67880.0,0.02982969]
[1730743127355,0.51529227,67881.0,67880.0,0.02982969]
[1730743127557,0.64275086,67881.0,67880.0,0.02982969]
[1730743128161,1.08471086,67881.0,67880.0,0.02982969]
[1730743131160,0.65472014,67881.0,67880.0,0.02982969]
[1730743133966,0.57944777,67881.0,67880.0,0.02982969]
[1730743136155,0.440498,67881.0,67880.0,0.54548869]
[1730743136360,0.006,67881.0,67880.0,0.10352869]
[1730743136568,0.079698,67881.0,67880.0,0.10352869]
[1730743136753,0.079698,67881.0,67880.0,1.60352869]
[1730743136966,0.079698,67881.0,67880.0,0.10352869]
[1730743137163,0.20715659,67881.0,67880.0,0.10352869]
[1730743137367,0.20715659,67881.0,67880.0,0.02982969]
[1730743137767,0.20615659,67881.0,67880.0,0.03282969]
[1730743138068,0.20115659,67881.0,67880.0,0.03282969]
[1730743138269,0.20115659,67881.0,67880.0,0.03582969]
[1730743139471,0.20115659,67881.0,67880.0,0.03482969]
[1730743139867,0.20115659,67881.0,67880.0,0.1312374]
[1730743140363,0.20115659,67881.0,67880.0,0.1282374]
[1730743140559,0.20115659,67881.0,67880.0,0.2019364]
[1730743140975,0.20115659,67881.0,67880.0,0.10552869]
[1730743141171,0.20115659,67881.0,67880.0,0.10352869]
[1730743144766,0.20115659,67881.0,67880.0,0.02982969]
[1730743146669,0.20215659,67881.0,67880.0,0.02982969]
[1730743147077,0.20115659,67881.0,67880.0,0.02982969]
[1730743147279,0.20315659,67881.0,67880.0,0.02982969]
[1730743148980,0.23821011,67881.0,67880.0,0.02982969]
[1730743151271,0.19439328,67881.0,67880.0,0.02982969]
[1730743155980,0.19439328,67881.0,67880.0,0.19957051]
[1730743155981,0.15933976,67881.0,67880.0,0.19957051]
[1730743156377,0.15933976,67881.0,67880.0,0.12652758]
[1730743157481,0.15933976,67881.0,67880.0,0.19959472]
[1730743158285,0.15933976,67881.0,67880.0,0.12652758]
[1730743158591,0.15933976,67881.0,67880.0,0.19959525]
[1730743158889,0.15933976,67881.0,67880.0,0.19959376]
[1730743159187,0.15933976,67881.0,67880.0,0.12652758]
[1730743159374,0.15933976,67881.0,67880.0,0.12673723]
[1730743159983,0.15933976,67881.0,67880.0,0.19979152]
[1730743160379,0.15933976,67881.0,67880.0,0.12673723]
[1730743161075,0.15933976,67881.0,67880.0,0.19978716]
[1730743161490,0.15933976,67881.0,67880.0,0.02982969]
[1730743163878,0.23429108,67881.0,67880.0,0.02982969]
[1730743166180,0.28018925,67881.0,67880.0,0.02982969]
[1730743166782,0.23429108,67881.0,67880.0,0.02982969]
[1730743168080,0.27996479,67881.0,67880.0,0.02982969]
[1730743168694,0.073711,67869.0,67868.0,0.0103]
[1730743168882,0.073711,67869.0,67864.0,0.0575]
[1730743168883,0.073714,67867.0,67866.0,0.00221032]
[1730743169092,0.10839688,67867.0,67866.0,0.00221032]
[1730743169290,0.07156719,67867.0,67866.0,0.00221032]
[1730743170887,0.07156719,67867.0,67866.0,0.02221032]
[1730743171086,0.03688431,67867.0,67866.0,0.11973638]
[1730743171988,0.03688431,67867.0,67866.0,0.10873363]
[1730743172186,0.03688431,67867.0,67866.0,0.11873363]
[1730743172798,0.03688431,67867.0,67866.0,0.19175249]
[1730743174393,0.03688431,67867.0,67866.0,0.09422918]
[1730743175188,0.03688431,67867.0,67866.0,0.19173223]
[1730743175499,0.03688431,67867.0,67866.0,0.09422918]
[1730743175989,0.03688431,67867.0,67866.0,0.19172794]
[1730743176295,0.03688431,67867.0,67866.0,0.09422918]
[1730743176998,0.04891826,67867.0,67866.0,0.19163331]
[1730743177587,0.04891826,67867.0,67866.0,0.26534831]
[1730743178186,0.04891826,67867.0,67866.0,0.19232945]
[1730743178990,0.04891826,67867.0,67866.0,0.09492532]
[1730743179593,0.04891826,67867.0,67866.0,0.45572532]
[1730743186202,0.04891826,67867.0,67866.0,0.55289019]
[1730743188304,0.03688431,67867.0,67866.0,0.55289019]
[1730743188509,0.08364176,67869.0,67868.0,0.073712]
[1730743188808,0.15735276,67869.0,67868.0,0.17087687]
[1730743189005,0.15735276,67869.0,67868.0,0.24370107]
[1730743189399,0.15735276,67869.0,67868.0,0.17087687]
[1730743189597,0.15735276,67869.0,67868.0,0.17887687]
[1730743190105,0.1691956,67869.0,67868.0,0.17887687]
[1730743190812,0.1691956,67869.0,67868.0,0.008]
[1730743191104,0.1691956,67869.0,67868.0,0.016]
[1730743194218,0.1691956,67869.0,67868.0,0.14800345]
[1730743194418,0.08555384,67869.0,67868.0,0.089712]
[1730743195214,0.073711,67869.0,67868.0,0.089712]
[1730743195397,0.08364176,67870.0,67869.0,0.073711]
[1730743195601,0.15735176,67870.0,67869.0,0.073711]
[1730743196630,0.15735176,67870.0,67869.0,0.080711]
[1730743197109,0.15735176,67870.0,67869.0,0.087711]
[1730743198616,0.08364176,67870.0,67869.0,0.25768807]
[1730743198809,0.08364176,67875.0,67874.0,0.073706]
[1730743199119,0.15734676,67875.0,67874.0,0.073706]
[1730743199319,0.15734676,67875.0,67874.0,0.13195591]
[1730743200106,0.15734676,67875.0,67874.0,0.13395591]
[1730743200302,0.15734676,67875.0,67874.0,0.077706]
[1730743201106,0.15734676,67875.0,67874.0,0.004]
[1730743201107,0.277044,67875.0,67874.0,0.004]
[1730743201303,0.33077892,67875.0,67874.0,0.004]
[1730743201517,0.073714,67867.0,67866.0,0.3608]
[1730743201712,0.073714,67867.0,67866.0,0.434515]
[1730743201713,0.0853325,67867.0,67866.0,0.434515]
[1730743201914,0.19620498,67867.0,67866.0,0.434515]
[1730743202120,0.20732268,67867.0,67866.0,0.434515]
[1730743202316,0.26634238,67867.0,67866.0,0.434515]
[1730743202921,0.11899759,67867.0,67866.0,0.444515]
[1730743203221,0.11999759,67867.0,67866.0,0.454515]
[1730743203518,0.20363935,67867.0,67866.0,0.454515]
[1730743203719,0.27735335,67867.0,67866.0,0.454515]
[1730743204825,0.27735335,67867.0,67866.0,0.3808]
[1730743205020,0.27735335,67867.0,67866.0,0.02]
[1730743206722,0.27735335,67867.0,67866.0,0.093715]
[1730743208414,0.27735335,67867.0,67866.0,0.02]
[1730743208415,0.27497148,67867.0,67866.0,0.02]
[1730743209223,0.27497148,67867.0,67866.0,0.11816695]
[1730743209224,0.15835576,67867.0,67866.0,0.11816695]
[1730743210110,0.15835576,67867.0,67857.0,0.3608]
[1730743210111,0.073716,67865.0,67857.0,0.08747552]
[1730743210315,0.16728352,67858.0,67852.0,0.08747552]
[1730743210516,0.08364176,67853.0,67850.0,0.08747552]
[1730743210822,0.073733,67849.0,67848.0,0.08747552]
[1730743211026,0.073734,67848.0,67847.0,0.08747552]
[1730743211213,0.07374,67843.0,67842.0,0.12824]
[1730743211418,0.03199407,67843.0,67842.0,0.24452602]
[1730743211727,0.10573407,67843.0,67842.0,0.24452602]
[1730743212113,0.10573407,67843.0,67842.0,0.24444171]
[1730743212314,0.10573407,67843.0,67842.0,0.21565532]
[1730743212521,0.10573407,67843.0,67842.0,0.16115532]
[1730743212822,0.18937583,67843.0,67842.0,0.16115532]
[1730743213018,0.15838176,67843.0,67842.0,0.17215532]
[1730743213422,0.07474,67843.0,67842.0,0.08474]
[1730743214124,0.07474,67843.0,67842.0,0.06924634]
[1730743214125,0.43554,67843.0,67842.0,0.06924634]
[1730743214320,0.55094,67843.0,67842.0,0.011]
[1730743214711,0.55194,67843.0,67842.0,0.013]
[1730743216215,0.073747,67836.0,67835.0,0.0103]
[1730743216416,0.073747,67836.0,67824.0,0.073759]
[1730743216417,0.073749,67834.0,67829.0,0.0103]
[1730743216617,0.073755,67829.0,67828.0,0.04362597]
[1730743216817,0.48831114,67830.0,67827.0,0.04362597]
[1730743216818,0.073756,67828.0,67827.0,0.04362597]
[1730743217413,0.073758,67826.0,67825.0,0.04362597]
[1730743217618,0.073758,67826.0,67824.0,0.11738597]
[1730743217619,0.073759,67825.0,67824.0,0.11738597]
[1730743218323,0.073759,67825.0,67824.0,0.07376]
[1730743218631,0.073762,67822.0,67821.0,0.073763]
[1730743219025,0.073762,67822.0,67821.0,0.11734958]
[1730743219429,0.073762,67822.0,67821.0,0.073763]
[1730743220628,0.074759,67825.0,67824.0,0.07376]
[1730743220815,0.001,67826.0,67824.0,0.07376]
[1730743221021,0.073757,67828.0,67827.0,0.073757]
[1730743221424,0.12751114,67840.0,67827.0,0.44228]
[1730743221637,0.073744,67840.0,67839.0,0.073744]
[1730743221931,0.073735,67849.0,67848.0,0.073733]
[1730743222322,0.26311114,67855.0,67845.0,0.3608]
[1730743222517,0.07373,67852.0,67851.0,0.073728]
[1730743222723,0.073726,67856.0,67855.0,0.073725]
[1730743224531,0.074726,67856.0,67855.0,0.073725]
[1730743224833,0.001,67856.0,67855.0,0.073725]
[1730743225622,0.001,67856.0,67855.0,0.075725]
[1730743225830,0.07372,67861.0,67860.0,0.073721]
[1730743227331,0.00221093,67870.0,67860.0,0.44208]
[1730743227537,0.00221093,67870.0,67869.0,0.073711]
[1730743228243,0.00221093,67870.0,67869.0,0.515751]
[1730743228537,0.00021093,67870.0,67869.0,0.572351]
[1730743228926,0.00321093,67870.0,67869.0,0.572351]
[1730743229431,0.00221093,67870.0,67869.0,0.572351]
[1730743229628,0.00021093,67870.0,67869.0,0.578351]
[1730743230734,0.073696,67883.0,67869.0,0.86544]
[1730743230941,0.073698,67882.0,67875.0,0.3608]
[1730743231526,0.073698,67882.0,67881.0,0.073698]
[1730743232239,0.075698,67882.0,67881.0,0.073698]
[1730743232733,0.073698,67882.0,67881.0,0.073698]
[1730743232929,0.089698,67882.0,67881.0,0.074698]
[1730743233129,0.20157922,67882.0,67875.0,0.31750614]
[1730743233328,0.12328106,67881.0,67875.0,0.31750614]
[1730743233635,0.07419862,67880.0,67876.0,0.073704]
[1730743233831,0.07419862,67879.0,67878.0,0.073702]
[1730743235036,0.07919862,67879.0,67878.0,0.073702]
[1730743235834,0.08419862,67879.0,67878.0,0.073702]
[1730743236432,0.08419862,67879.0,67878.0,0.434502]
[1730743236641,0.01,67879.0,67878.0,0.434502]
[1730743237234,0.04424025,67879.0,67878.0,0.434502]
[1730743239538,0.01,67879.0,67878.0,0.434502]
[1730743240948,0.01,67879.0,67878.0,0.44654964]
[1730743249456,0.01,67879.0,67878.0,0.51885062]
[1730743250652,0.01,67879.0,67878.0,1.08832176]
[1730743250852,0.19289116,67897.0,67896.0,0.073682]
[1730743250853,0.11921016,67897.0,67896.0,0.073682]
[1730743251450,0.06041016,67897.0,67896.0,0.073682]
[1730743251658,0.00221016,67897.0,67896.0,0.073682]
[1730743252449,0.03021016,67897.0,67896.0,0.074682]
[1730743252953,0.028,67897.0,67896.0,0.074682]
[1730743253848,0.014,67897.0,67896.0,0.074682]
[1730743254242,0.028,67897.0,67896.0,0.075682]
[1730743254542,0.06343744,67897.0,67896.0,0.075682]
[1730743254745,0.15143359,67897.0,67896.0,0.075682]
[1730743255748,0.07369,67890.0,67889.0,0.073689]
[1730743256050,0.10912744,67890.0,67889.0,0.073689]
[1730743256252,0.19696281,67890.0,67889.0,0.073689]
[1730743256746,0.12327281,67890.0,67889.0,0.073689]
[1730743256949,0.18238703,67890.0,67889.0,0.073689]
[1730743257148,0.2702224,67890.0,67889.0,0.073689]
[1730743257350,0.12327281,67890.0,67889.0,0.073689]
[1730743257541,0.13427281,67890.0,67889.0,0.074689]
[1730743257951,0.21796181,67890.0,67889.0,0.075689]
[1730743259351,0.17127097,67890.0,67889.0,0.075689]
[1730743259659,0.21658798,67890.0,67889.0,0.075689]
[1730743259859,0.094689,67890.0,67889.0,0.002]
[1730743260153,0.073698,67881.0,67880.0,0.0103]
[1730743260357,0.073704,67876.0,67875.0,0.00220958]
[1730743260657,0.27521892,67876.0,67875.0,0.00220958]
[1730743260858,0.24592273,67876.0,67875.0,0.00220958]
[1730743261055,0.24592273,67876.0,67875.0,0.07591458]
[1730743261559,0.23549182,67876.0,67875.0,0.07591458]
[1730743261765,0.073704,67876.0,67875.0,0.07591458]
[1730743262058,0.073704,67876.0,67875.0,0.00220958]
[1730743262559,0.073704,67876.0,67875.0,0.06039542]
[1730743263359,0.073704,67876.0,67875.0,0.00220958]
[1730743263861,0.074704,67876.0,67875.0,0.00220958]
[1730743264060,0.074704,67876.0,67875.0,0.06039542]
[1730743264454,0.20221514,67876.0,67875.0,0.00220958]
[1730743264662,0.20121514,67876.0,67875.0,0.00220958]
[1730743264852,0.20121514,67876.0,67875.0,0.04584568]
[1730743265053,0.20221514,67876.0,67875.0,0.04584568]
[1730743265460,0.074704,67876.0,67875.0,0.04584568]
[1730743266164,0.20221514,67876.0,67875.0,0.00220958]
[1730743267462,0.20121514,67876.0,67875.0,0.00220958]
[1730743267665,0.20221514,67876.0,67875.0,0.00220958]
[1730743267855,0.64421514,67876.0,67866.0,0.0436361]
[1730743268052,0.073715,67866.0,67865.0,0.0436361]
[1730743268266,0.3608,67867.0,67864.0,0.0436361]
[1730743268463,0.073716,67865.0,67864.0,0.0436361]
[1730743268657,0.073716,67865.0,67863.0,0.0436361]
[1730743268868,0.132517,67864.0,67863.0,0.04362314]
[1730743269169,0.132517,67864.0,67862.0,0.04362314]
[1730743269170,0.073718,67863.0,67862.0,0.04362314]
[1730743269463,0.073719,67862.0,67861.0,0.04362314]
[1730743269669,0.073727,67856.0,67855.0,0.073726]
[1730743270062,0.073727,67855.0,67854.0,0.01180926]
[1730743270371,0.073727,67855.0,67854.0,0.073728]
[1730743271976,0.073727,67855.0,67854.0,0.005]
[1730743272368,0.073727,67855.0,67854.0,0.007]
[1730743273088,0.20123814,67855.0,67854.0,0.007]
[1730743273375,0.20123814,67855.0,67854.0,0.005]
[1730743273567,0.20123814,67855.0,67854.0,0.009]
[1730743274158,0.20123814,67855.0,67854.0,0.005]
[1730743274461,0.073735,67847.0,67846.0,0.073736]
[1730743274664,0.073735,67847.0,67846.0,0.08559006]
[1730743275166,0.3608,67850.0,67846.0,0.01185406]
[1730743275469,0.004,67855.0,67854.0,0.073728]
[1730743275470,0.077727,67855.0,67854.0,0.073728]
[1730743275669,0.075727,67855.0,67854.0,0.073728]
[1730743276659,0.36301094,67862.0,67856.0,0.073724]
[1730743276660,0.073727,67857.0,67856.0,0.073724]
[1730743276858,0.073727,67857.0,67856.0,0.11720158]
[1730743278468,0.073727,67857.0,67856.0,0.073724]
[1730743279873,0.073722,67860.0,67859.0,0.07372]
[1730743280173,0.07592994,67862.0,67861.0,0.07372]
[1730743280376,0.07592994,67862.0,67861.0,0.11716579]
[1730743280677,0.00221094,67862.0,67861.0,0.07372]
[1730743281683,0.00321094,67862.0,67861.0,0.07972]
[1730743282062,0.07592994,67862.0,67861.0,0.04945441]
[1730743282366,0.435519,67862.0,67861.0,0.006]
[1730743282878,0.435519,67862.0,67861.0,0.011]
[1730743282879,0.436519,67862.0,67861.0,0.011]
[1730743283080,0.554419,67862.0,67861.0,0.011]
[1730743283669,0.553419,67862.0,67861.0,0.008]
[1730743284470,0.553419,67862.0,67861.0,0.002]
[1730743284771,0.913219,67862.0,67861.0,0.007]
[1730743285176,0.918219,67862.0,67861.0,0.002]
[1730743285978,0.073729,67853.0,67852.0,0.07373]
[1730743286183,0.07373,67852.0,67851.0,0.04347536]
[1730743286369,0.073731,67851.0,67850.0,0.05817148]
[1730743286566,0.32875328,67851.0,67850.0,0.05817148]
[1730743286981,0.25502228,67851.0,67840.0,0.00221072]
[1730743287172,0.56204814,67845.0,67840.0,0.00221072]
[1730743287367,0.073742,67841.0,67840.0,0.00221072]
[1730743288579,0.073753,67831.0,67830.0,0.084054]
[1730743288785,0.073753,67831.0,67830.0,0.073754]
[1730743289671,0.0115235,67842.0,67830.0,0.44228]
[1730743289872,0.36301149,67855.0,67840.0,0.073743]
[1730743289873,0.001,67841.0,67840.0,0.073743]
[1730743290279,0.00221149,67855.0,67854.0,0.073728]
[1730743290472,0.00221149,67855.0,67854.0,0.434528]
[1730743290676,0.073713,67868.0,67867.0,0.073711]
[1730743290875,0.01153529,67875.0,67862.0,0.12751114]
[1730743291081,0.073712,67869.0,67868.0,0.073711]
[1730743291476,0.073709,67872.0,67871.0,0.073708]
[1730743291676,0.3608,67877.0,67874.0,0.073705]
[1730743291885,0.073705,67875.0,67874.0,0.073705]
[1730743293080,0.075705,67875.0,67874.0,0.073705]
[1730743293890,0.073705,67875.0,67874.0,0.073705]
[1730743294204,0.074705,67875.0,67874.0,0.073705]
[1730743294390,0.075705,67875.0,67874.0,0.073705]
[1730743294687,0.073706,67874.0,67873.0,0.05806731]
[1730743295585,0.073706,67874.0,67873.0,0.13177431]
[1730743296486,0.073706,67874.0,67873.0,0.05806731]
[1730743296980,0.073707,67873.0,67872.0,0.05806731]
[1730743297592,0.073707,67873.0,67866.0,0.01186093]
[1730743297593,0.073712,67868.0,67863.0,0.08288413]
[1730743297787,0.073706,67874.0,67863.0,0.05811954]
[1730743297788,0.434517,67864.0,67863.0,0.05811954]
[1730743298088,0.073717,67864.0,67863.0,0.073718]
[1730743298389,0.434517,67864.0,67863.0,0.073718]
[1730743298587,0.434517,67864.0,67863.0,0.04360564]
[1730743298887,0.434517,67864.0,67861.0,0.05811625]
[1730743299089,0.073719,67862.0,67861.0,0.073719]
[1730743299683,0.073722,67859.0,67858.0,0.04580875]
[1730743299990,0.073722,67859.0,67858.0,0.00221057]
[1730743302187,0.073722,67859.0,67858.0,0.00521057]
[1730743302680,0.074722,67859.0,67858.0,0.00221057]
[1730743302880,0.075722,67859.0,67858.0,0.00221057]
[1730743303589,0.075722,67859.0,67858.0,0.07593357]
[1730743304394,0.074722,67859.0,67858.0,0.07593357]
[1730743304589,0.074722,67859.0,67858.0,0.11953175]
[1730743305085,0.074722,67859.0,67858.0,0.12553175]
[1730743305293,0.079722,67859.0,67858.0,0.12653175]
[1730743305495,0.078722,67859.0,67858.0,0.07693357]
[1730743305690,0.078722,67859.0,67858.0,0.12553175]
[1730743305991,0.073722,67859.0,67858.0,0.12853175]
[1730743306399,0.073722,67859.0,67858.0,0.08493357]
[1730743306788,0.073722,67859.0,67858.0,0.08293357]
[1730743307187,0.073719,67863.0,67862.0,0.073718]
[1730743307488,0.00104001,67864.0,67858.0,0.00821057]
[1730743307489,0.36184001,67864.0,67858.0,0.00821057]
[1730743307791,0.073722,67859.0,67858.0,0.00821057]
[1730743307985,0.073722,67859.0,67858.0,0.00421057]
[1730743308381,0.073722,67859.0,67858.0,0.07793357]
[1730743309087,0.073722,67859.0,67858.0,0.07593357]
[1730743309491,0.075722,67859.0,67858.0,0.00221057]
[1730743310195,0.20323314,67859.0,67858.0,0.00221057]
[1730743310892,0.20323314,67859.0,67858.0,0.00721057]
[1730743311188,0.20123314,67859.0,67858.0,0.00721057]
[1730743311383,0.20523314,67859.0,67858.0,0.00321057]
[1730743312099,0.20523314,67859.0,67858.0,0.00221057]
[1730743312291,0.20923314,67859.0,67858.0,0.00221057]
[1730743313689,0.22130136,67859.0,67858.0,0.00221057]
[1730743314386,0.22130136,67859.0,67858.0,0.06034147]
[1730743314803,0.22030136,67859.0,67858.0,0.06034147]
[1730743315002,0.21630136,67859.0,67858.0,0.06034147]
[1730743315300,0.21830136,67859.0,67858.0,0.06034147]
[1730743315600,0.21530136,67859.0,67858.0,0.00221057]
[1730743315894,0.22130136,67859.0,67858.0,0.00221057]
[1730743316593,0.22130136,67859.0,67858.0,0.06035949]
[1730743317095,0.22130136,67859.0,67858.0,0.00221057]
[1730743317296,0.22130136,67859.0,67858.0,0.0390522]
[1730743317490,0.22130136,67859.0,67858.0,0.09720831]
[1730743317990,0.22130136,67859.0,67858.0,0.0390522]
[1730743318585,0.09379022,67859.0,67858.0,0.0390522]
[1730743318791,0.09379022,67859.0,67858.0,0.1127752]
[1730743319187,0.09379022,67859.0,67858.0,0.09722878]
[1730743319394,0.09379022,67859.0,67849.0,0.07258413]
[1730743319395,0.073726,67856.0,67849.0,0.07258413]
[1730743319602,0.073736,67846.0,67843.0,0.08288413]
[1730743319803,0.073736,67846.0,67842.0,0.07258413]
[1730743319804,0.3608,67844.0,67842.0,0.07258413]
[1730743319991,0.3608,67844.0,67841.0,0.07258413]
[1730743320189,0.073741,67842.0,67841.0,0.073742]
[1730743320389,0.073741,67842.0,67841.0,0.17164155]
[1730743321387,0.073741,67842.0,67841.0,0.17072109]
[1730743321593,0.073741,67842.0,67837.0,0.09961211]
[1730743321594,0.073745,67838.0,67837.0,0.01251115]
[1730743321794,0.434545,67838.0,67837.0,0.08625715]
[1730743321994,0.434545,67838.0,67837.0,0.01251115]
[1730743322804,0.434545,67838.0,67837.0,0.08625715]
[1730743323000,0.434545,67838.0,67837.0,0.01251115]
[1730743323892,0.434545,67838.0,67837.0,0.02451115]
[1730743323893,0.435545,67838.0,67837.0,0.02451115]
[1730743324489,0.436545,67838.0,67837.0,0.03151115]
[1730743324892,0.436545,67838.0,67837.0,0.103046]
[1730743325092,0.075745,67838.0,67837.0,0.103046]
[1730743325303,0.436545,67838.0,67837.0,0.0293]
[1730743326599,0.878785,67838.0,67837.0,0.0293]
[1730743327213,0.073746,67837.0,67836.0,0.0069]
[1730743327399,0.07376,67824.0,67823.0,0.0160115]
[1730743327595,0.43456,67824.0,67823.0,0.0022115]
[1730743328503,0.43556,67824.0,67823.0,0.0082115]
[1730743328809,0.07576,67824.0,67823.0,0.0889725]
[1730743329499,0.002,67824.0,67823.0,0.0889725]
[1730743329693,0.07576,67824.0,67823.0,0.0889725]
[1730743330296,0.07976,67824.0,67823.0,0.0819725]
[1730743330904,0.07876,67824.0,67823.0,0.0759725]
[1730743331500,0.005,67824.0,67823.0,0.0759725]
[1730743331700,0.073758,67827.0,67826.0,0.073758]
[1730743331909,0.3608,67841.0,67826.0,0.17039335]
[1730743332210,0.3608,67841.0,67838.0,0.073743]
[1730743332211,0.073745,67839.0,67838.0,0.073743]
[1730743332415,0.073745,67839.0,67838.0,1.573743]
[1730743333007,0.073745,67839.0,67838.0,0.073743]
[1730743333210,0.07375,67835.0,67834.0,0.073749]
[1730743333408,0.07375,67835.0,67834.0,1.573749]
[1730743333912,0.07375,67833.0,67832.0,0.0564]
[1730743334216,0.07375,67833.0,67825.0,0.073757]
[1730743334217,0.073758,67826.0,67825.0,0.073757]
[1730743334722,0.07376,67824.0,67823.0,0.0022115]
[1730743337108,0.07676,67824.0,67823.0,0.0022115]
[1730743338109,0.08376,67824.0,67823.0,0.03907215]
[1730743338707,0.07876,67824.0,67823.0,0.03907215]
[1730743339014,0.08176,67824.0,67823.0,0.03907215]
[1730743340513,0.08476,67824.0,67823.0,0.03907215]
[1730743340908,0.08476,67824.0,67823.0,0.03686065]
[1730743341310,0.08776,67824.0,67823.0,0.03686065]
[1730743341505,0.08076,67824.0,67823.0,0.03686065]
[1730743341706,0.08776,67824.0,67823.0,0.03686065]
[1730743342116,0.08876,67824.0,67823.0,0.03686065]
[1730743342309,0.53108,67824.0,67812.0,0.0138]
[1730743342510,0.073775,67810.0,67809.0,0.00221205]
[1730743343020,0.516175,67810.0,67809.0,0.00221205]
[1730743343205,0.650215,67810.0,67809.0,0.00221205]
[1730743343815,0.650215,67810.0,67797.0,0.0103]
[1730743343816,0.651215,67810.0,67797.0,0.0103]
[1730743344022,0.92289614,67801.0,67793.0,0.0103]
[1730743344205,0.92289614,67801.0,67790.0,0.07037856]
[1730743344619,0.92289614,67801.0,67798.0,0.073789]
[1730743344912,0.795385,67801.0,67800.0,0.173786]
[1730743345120,0.7216,67801.0,67800.0,0.173786]
[1730743345318,0.07378,67806.0,67805.0,0.073781]
[1730743345509,0.3608,67809.0,67808.0,0.073778]
[1730743345909,0.434577,67809.0,67808.0,1.573778]
[1730743346106,0.3608,67817.0,67808.0,1.573778]
[1730743346107,0.3608,67817.0,67809.0,0.073777]
[1730743346315,0.36184001,67823.0,67810.0,0.073775]
[1730743346516,0.073773,67812.0,67811.0,0.07269533]
[1730743346713,0.073775,67811.0,67810.0,0.073775]
[1730743347317,0.12751114,67812.0,67809.0,0.1117]
[1730743347511,0.073777,67809.0,67808.0,1.50076]
[1730743347706,0.073779,67807.0,67806.0,0.073779]
[1730743348019,0.3608,67811.0,67810.0,0.01476589]
[1730743348210,0.434574,67811.0,67810.0,0.01476589]
[1730743348416,0.434574,67811.0,67810.0,0.08854089]
[1730743349107,0.435574,67811.0,67810.0,0.08854089]
[1730743349518,0.436574,67811.0,67810.0,0.08854089]
[1730743349710,0.03147997,67811.0,67810.0,0.08854089]
[1730743349921,0.002,67811.0,67810.0,0.18581705]
[1730743351228,0.49031114,67811.0,67810.0,0.01476589]
[1730743351411,0.56408514,67811.0,67810.0,0.01476589]
[1730743351612,0.073785,67801.0,67800.0,0.1]
[1730743351815,0.69613614,67801.0,67800.0,0.1]
[1730743353216,0.69713614,67801.0,67800.0,0.1]
[1730743353418,0.66026843,67801.0,67800.0,0.1]
[1730743354023,0.67182758,67801.0,67800.0,0.1]
[1730743355121,0.66026843,67801.0,67800.0,0.1]
[1730743355526,0.52622843,67801.0,67800.0,0.1]
[1730743355825,0.03891729,67801.0,67800.0,0.173786]
[1730743356031,0.16642843,67801.0,67800.0,0.173786]
[1730743356333,0.16642843,67801.0,67800.0,0.1]
[1730743356517,0.16642843,67801.0,67800.0,0.173786]
[1730743356833,0.16642843,67801.0,67800.0,0.1]
[1730743358232,0.16642843,67801.0,67800.0,0.21065915]
[1730743359515,0.16642843,67801.0,67800.0,0.13687315]
[1730743361125,0.52722843,67801.0,67800.0,0.13687315]
[1730743361314,0.58152843,67801.0,67800.0,0.13687315]
[1730743362014,1.02400843,67801.0,67800.0,0.13687315]
[1730743362213,0.073798,67789.0,67788.0,0.0103]
[1730743362419,0.073804,67786.0,67785.0,0.073802]
[1730743363925,0.074804,67786.0,67785.0,0.073802]
[1730743364316,0.075804,67786.0,67785.0,0.073802]
[1730743365722,0.002,67786.0,67785.0,0.073802]
[1730743366123,0.073798,67790.0,67788.0,0.073799]
[1730743366323,0.073798,67790.0,67789.0,0.073798]